[Event "Late-Titled-Tuesday-Blitz-August-29-2023"]
[Site "Chess.com"]
[Date "2023.08.29"]
[Round "4"]
[White "burbur555"]
[Black "Mops_2004"]
[Result "1-0"]
[WhiteElo "2565"]
[BlackElo "2762"]
[TimeControl "180+1"]
[EndTime "14:40:20 PDT"]
[Termination "burbur555 won by resignation"]

1. c4 {[%clk 0:02:58.8]} 1... g6 {[%clk 0:03:00]} 2. d4 {[%clk 0:02:57.6]} 2...
Bg7 {[%clk 0:03:00.3]} 3. e4 {[%clk 0:02:57.5]} 3... d6 {[%clk 0:03:00.5]} 4. h3
{[%clk 0:02:51.5]} 4... e5 {[%clk 0:02:59.9]} 5. d5 {[%clk 0:02:50.6]} 5... a5
{[%clk 0:02:58.9]} 6. Bd3 {[%clk 0:02:50.3]} 6... Na6 {[%clk 0:02:58.5]} 7. Be3
{[%clk 0:02:48.8]} 7... Bh6 {[%clk 0:02:56.6]} 8. Bxh6 {[%clk 0:02:46]} 8...
Nxh6 {[%clk 0:02:56.8]} 9. Nf3 {[%clk 0:02:44.3]} 9... Nc5 {[%clk 0:02:53]} 10.
Bc2 {[%clk 0:02:43.8]} 10... f5 {[%clk 0:02:50.4]} 11. Nc3 {[%clk 0:02:39.5]}
11... O-O {[%clk 0:02:49.4]} 12. Qd2 {[%clk 0:02:38]} 12... Kg7 {[%clk
0:02:41.6]} 13. b3 {[%clk 0:02:30.6]} 13... b6 {[%clk 0:02:21.3]} 14. exf5
{[%clk 0:02:13]} 14... Nxf5 {[%clk 0:02:17.6]} 15. O-O {[%clk 0:02:08.7]} 15...
Nh4 {[%clk 0:02:11.8]} 16. Nh2 {[%clk 0:01:39.8]} 16... Bd7 {[%clk 0:01:41.4]}
17. Ne4 {[%clk 0:01:34.4]} 17... Rf4 {[%clk 0:01:27.2]} 18. Rae1 {[%clk
0:01:30.6]} 18... h6 {[%clk 0:00:53.1]} 19. f3 {[%clk 0:01:12.4]} 19... Nf5
{[%clk 0:00:37.7]} 20. Nxc5 {[%clk 0:00:25]} 20... bxc5 {[%clk 0:00:37.3]} 21.
Be4 {[%clk 0:00:19.4]} 21... Ng3 {[%clk 0:00:35.6]} 22. Rf2 {[%clk 0:00:18.3]}
22... Qh4 {[%clk 0:00:33.6]} 23. Nf1 {[%clk 0:00:17.7]} 23... Nxe4 {[%clk
0:00:22.2]} 24. fxe4 {[%clk 0:00:16.5]} 24... Rxf2 {[%clk 0:00:15.8]} 25. Qxf2
{[%clk 0:00:15.6]} 25... Qxf2+ {[%clk 0:00:13]} 26. Kxf2 {[%clk 0:00:15.6]}
26... a4 {[%clk 0:00:13.9]} 27. Rb1 {[%clk 0:00:14.2]} 27... axb3 {[%clk
0:00:14]} 28. axb3 {[%clk 0:00:14.4]} 28... Ra2+ {[%clk 0:00:14.6]} 29. Kg1
{[%clk 0:00:14.5]} 29... Re2 {[%clk 0:00:12.1]} 30. Ng3 {[%clk 0:00:13.8]} 30...
Rc2 {[%clk 0:00:10.3]} 31. Nf1 {[%clk 0:00:12.7]} 31... h5 {[%clk 0:00:09.4]}
32. Ra1 {[%clk 0:00:11.6]} 32... Rb2 {[%clk 0:00:05.8]} 33. Ra7 {[%clk
0:00:11.5]} 33... Kf6 {[%clk 0:00:05.8]} 34. Rxc7 {[%clk 0:00:11.8]} 34... Ke7
{[%clk 0:00:06.3]} 35. Rb7 {[%clk 0:00:12.1]} 35... Kd8 {[%clk 0:00:06.6]} 36.
Rb8+ {[%clk 0:00:10.2]} 36... Bc8 {[%clk 0:00:06]} 37. Rb6 {[%clk 0:00:09.4]}
37... Kc7 {[%clk 0:00:04.8]} 38. Rc6+ {[%clk 0:00:09.6]} 38... Kd7 {[%clk
0:00:05.5]} 39. Rb6 {[%clk 0:00:09.9]} 39... Kc7 {[%clk 0:00:04.6]} 40. Rc6+
{[%clk 0:00:10.2]} 40... Kd7 {[%clk 0:00:05.1]} 41. Rb6 {[%clk 0:00:10.6]} 41...
h4 {[%clk 0:00:05.7]} 42. Ne3 {[%clk 0:00:10]} 42... Re2 {[%clk 0:00:04.8]} 43.
Ng4 {[%clk 0:00:09.4]} 43... Kc7 {[%clk 0:00:04.2]} 44. Rc6+ {[%clk 0:00:09.1]}
44... Kd7 {[%clk 0:00:02.9]} 45. Nf6+ {[%clk 0:00:08.7]} 45... Ke7 {[%clk
0:00:03.4]} 46. Rxc8 {[%clk 0:00:08.4]} 46... Kxf6 {[%clk 0:00:03.7]} 47. Re8
{[%clk 0:00:08.2]} 47... Rxe4 {[%clk 0:00:03.1]} 48. Re6+ {[%clk 0:00:08.7]}
48... Kf5 {[%clk 0:00:03.6]} 49. Rxd6 {[%clk 0:00:09.3]} 49... Re1+ {[%clk
0:00:03.5]} 50. Kh2 {[%clk 0:00:08.2]} 50... Rb1 {[%clk 0:00:03.7]} 51. Rc6
{[%clk 0:00:08.3]} 51... Rxb3 {[%clk 0:00:03.3]} 52. Rxc5 {[%clk 0:00:08.8]}
52... e4 {[%clk 0:00:02.3]} 53. Rc6 {[%clk 0:00:07.9]} 53... e3 {[%clk
0:00:02.2]} 54. Re6 {[%clk 0:00:07.9]} 54... Kf4 {[%clk 0:00:02.7]} 55. d6
{[%clk 0:00:07.5]} 55... Rd3 {[%clk 0:00:03]} 56. c5 {[%clk 0:00:07.6]} 56...
Rd5 {[%clk 0:00:03.3]} 57. c6 {[%clk 0:00:07.4]} 57... Kf5 {[%clk 0:00:02.9]}
58. c7 {[%clk 0:00:06.9]} 58... Kxe6 {[%clk 0:00:03.3]} 59. c8=Q+ {[%clk
0:00:07.1]} 59... Kxd6 {[%clk 0:00:04.2]} 60. Qe8 {[%clk 0:00:06.7]} 60... Re5
{[%clk 0:00:04.1]} 61. Qxg6+ {[%clk 0:00:07]} 61... Re6 {[%clk 0:00:03.7]} 62.
Qd3+ {[%clk 0:00:06.8]} 62... Ke7 {[%clk 0:00:04.1]} 63. Qe2 {[%clk 0:00:07.1]}
63... Kf6 {[%clk 0:00:04.4]} 64. Kg1 {[%clk 0:00:05.7]} 64... Ke7 {[%clk
0:00:04.5]} 65. Kf1 {[%clk 0:00:05.9]} 65... Kd6 {[%clk 0:00:05]} 66. Ke1 {[%clk
0:00:05.6]} 66... Re4 {[%clk 0:00:04.3]} 67. Qf3 {[%clk 0:00:05.3]} 67... Ke5
{[%clk 0:00:04.6]} 68. Ke2 {[%clk 0:00:05.5]} 68... Kd4 {[%clk 0:00:05]} 69.
Qf6+ {[%clk 0:00:05.1]} 69... Kd5 {[%clk 0:00:05.3]} 70. Qf5+ {[%clk 0:00:05]}
70... Kd4 {[%clk 0:00:04.5]} 71. Qd7+ {[%clk 0:00:04.7]} 71... Ke5 {[%clk
0:00:03.7]} 72. Qe7+ {[%clk 0:00:04.8]} 72... Kd5 {[%clk 0:00:03.9]} 73. Qd7+
{[%clk 0:00:04.8]} 73... Ke5 {[%clk 0:00:04.3]} 74. Qc6 {[%clk 0:00:05.4]} 74...
Kf5 {[%clk 0:00:03.3]} 75. Qd5+ {[%clk 0:00:05.3]} 75... Kf4 {[%clk 0:00:03.7]}
76. Qh5 {[%clk 0:00:04.7]} 76... Re5 {[%clk 0:00:01.6]} 77. Qxh4+ {[%clk
0:00:04.9]} 77... Kf5 {[%clk 0:00:02.2]} 78. Qh5+ {[%clk 0:00:05.3]} 78... Ke4
{[%clk 0:00:02.5]} 79. Qxe5+ {[%clk 0:00:05.9]} 1-0

[Event "Late-Titled-Tuesday-Blitz-August-29-2023"]
[Site "Chess.com"]
[Date "2023.08.29"]
[Round "4"]
[White "dropstoneDP"]
[Black "Sanan_Sjugirov"]
[Result "1/2-1/2"]
[WhiteElo "2974"]
[BlackElo "2859"]
[TimeControl "180+1"]
[EndTime "14:40:23 PDT"]
[Termination "Game drawn by stalemate"]

1. c4 {[%clk 0:03:00.9]} 1... Nf6 {[%clk 0:02:58.4]} 2. g3 {[%clk 0:03:00.8]}
2... c6 {[%clk 0:02:53.8]} 3. Nf3 {[%clk 0:03:00.6]} 3... d5 {[%clk 0:02:54.4]}
4. Bg2 {[%clk 0:03:01.2]} 4... dxc4 {[%clk 0:02:54.3]} 5. O-O {[%clk 0:02:59.4]}
5... e6 {[%clk 0:02:52.5]} 6. Qc2 {[%clk 0:02:44.5]} 6... b5 {[%clk 0:02:49.6]}
7. a4 {[%clk 0:02:42.7]} 7... Bb7 {[%clk 0:02:46.3]} 8. Ne5 {[%clk 0:01:52.3]}
8... Bd6 {[%clk 0:02:28.7]} 9. d4 {[%clk 0:01:45.9]} 9... a6 {[%clk 0:02:08]}
10. axb5 {[%clk 0:01:26.1]} 10... axb5 {[%clk 0:02:07.6]} 11. Rxa8 {[%clk
0:01:27]} 11... Bxa8 {[%clk 0:02:07.9]} 12. b3 {[%clk 0:01:27.6]} 12... cxb3
{[%clk 0:02:02.3]} 13. Qxb3 {[%clk 0:01:28.5]} 13... O-O {[%clk 0:02:00.3]} 14.
Bg5 {[%clk 0:01:28.3]} 14... h6 {[%clk 0:01:52.1]} 15. Bxf6 {[%clk 0:01:27.2]}
15... Qxf6 {[%clk 0:01:53]} 16. f4 {[%clk 0:01:26.7]} 16... Qe7 {[%clk
0:01:40.2]} 17. Nc3 {[%clk 0:01:25.7]} 17... Bb7 {[%clk 0:01:29.7]} 18. e3
{[%clk 0:01:18.9]} 18... Rc8 {[%clk 0:00:56.7]} 19. Ne4 {[%clk 0:01:14.3]} 19...
Nd7 {[%clk 0:00:48.1]} 20. Nxd7 {[%clk 0:01:12.3]} 20... Qxd7 {[%clk 0:00:48]}
21. Rc1 {[%clk 0:01:00.4]} 21... Be7 {[%clk 0:00:44.6]} 22. Nc5 {[%clk
0:00:54.8]} 22... Bxc5 {[%clk 0:00:44.3]} 23. Rxc5 {[%clk 0:00:55.7]} 23... Ra8
{[%clk 0:00:43.8]} 24. Qc3 {[%clk 0:00:53.1]} 24... Ra6 {[%clk 0:00:41.3]} 25.
h4 {[%clk 0:00:51]} 25... Qd8 {[%clk 0:00:34.9]} 26. h5 {[%clk 0:00:45.2]} 26...
Qa8 {[%clk 0:00:33.7]} 27. Qd2 {[%clk 0:00:35.1]} 27... Ra2 {[%clk 0:00:32.9]}
28. Rc2 {[%clk 0:00:29.7]} 28... Rxc2 {[%clk 0:00:28.8]} 29. Qxc2 {[%clk
0:00:30.6]} 29... b4 {[%clk 0:00:28]} 30. Be4 {[%clk 0:00:30.6]} 30... Qa3
{[%clk 0:00:25.1]} 31. Kf2 {[%clk 0:00:22.6]} 31... b3 {[%clk 0:00:25.1]} 32.
Qc3 {[%clk 0:00:21]} 32... Qa2+ {[%clk 0:00:21.6]} 33. Ke1 {[%clk 0:00:20.3]}
33... Ba6 {[%clk 0:00:19.9]} 34. Qd2 {[%clk 0:00:16.3]} 34... Qa1+ {[%clk
0:00:17.1]} 35. Qd1 {[%clk 0:00:16.9]} 35... b2 {[%clk 0:00:16.1]} 36. Kd2
{[%clk 0:00:15.4]} 36... Qa5+ {[%clk 0:00:14.3]} 37. Kc2 {[%clk 0:00:15.7]}
37... Qa4+ {[%clk 0:00:13.6]} 38. Kd2 {[%clk 0:00:16.4]} 38... Qb4+ {[%clk
0:00:12]} 39. Kc2 {[%clk 0:00:17.1]} 39... Bc4 {[%clk 0:00:09.7]} 40. Qb1 {[%clk
0:00:16.4]} 40... Qb3+ {[%clk 0:00:06.8]} 41. Kd2 {[%clk 0:00:16.7]} 41... Kf8
{[%clk 0:00:04.4]} 42. Qc2 {[%clk 0:00:13.9]} 42... Qb4+ {[%clk 0:00:04.2]} 43.
Qc3 {[%clk 0:00:14.5]} 43... Qb5 {[%clk 0:00:02.8]} 44. Bb1 {[%clk 0:00:14.6]}
44... Kg8 {[%clk 0:00:02.6]} 45. Qa3 {[%clk 0:00:14.7]} 45... Qb8 {[%clk
0:00:02.8]} 46. Kc3 {[%clk 0:00:13.1]} 46... Bb5 {[%clk 0:00:03.3]} 47. Qc5
{[%clk 0:00:08]} 47... Qa8 {[%clk 0:00:03.1]} 48. Kxb2 {[%clk 0:00:08.3]} 48...
Qd8 {[%clk 0:00:02.4]} 49. Bc2 {[%clk 0:00:07.8]} 49... Qb8 {[%clk 0:00:02.5]}
50. Kc3 {[%clk 0:00:07.4]} 50... Qa8 {[%clk 0:00:03.2]} 51. Kb2 {[%clk
0:00:07.5]} 51... Qb8 {[%clk 0:00:03.5]} 52. Qb4 {[%clk 0:00:07.2]} 52... Qa8
{[%clk 0:00:04]} 53. g4 {[%clk 0:00:07.2]} 53... Qd8 {[%clk 0:00:03.9]} 54. Qc5
{[%clk 0:00:06.9]} 54... Qb8 {[%clk 0:00:03.5]} 55. Qb4 {[%clk 0:00:07.4]} 55...
Qd8 {[%clk 0:00:03.8]} 56. Be4 {[%clk 0:00:07.7]} 56... Qh4 {[%clk 0:00:03.6]}
57. Qd6 {[%clk 0:00:03.6]} 57... Qf2+ {[%clk 0:00:03.5]} 58. Bc2 {[%clk
0:00:04.3]} 58... g6 {[%clk 0:00:02.1]} 59. hxg6 {[%clk 0:00:05]} 59... Bd3
{[%clk 0:00:02.1]} 60. gxf7+ {[%clk 0:00:05.6]} 60... Kxf7 {[%clk 0:00:02.3]}
61. Qc7+ {[%clk 0:00:06.3]} 61... Kf8 {[%clk 0:00:02.4]} 62. Qc8+ {[%clk
0:00:06.6]} 62... Ke7 {[%clk 0:00:02.8]} 63. Qc7+ {[%clk 0:00:07.1]} 63... Kf8
{[%clk 0:00:03.3]} 64. Qxc6 {[%clk 0:00:07.7]} 64... Bxc2 {[%clk 0:00:03]} 65.
Qxc2 {[%clk 0:00:08.2]} 65... Qxe3 {[%clk 0:00:03.7]} 66. Qc5+ {[%clk
0:00:08.5]} 66... Kf7 {[%clk 0:00:03.6]} 67. Qc7+ {[%clk 0:00:09.1]} 67... Ke8
{[%clk 0:00:03.2]} 68. Qe5 {[%clk 0:00:09]} 68... Qf2+ {[%clk 0:00:02.7]} 69.
Kb3 {[%clk 0:00:09.6]} 69... Qf3+ {[%clk 0:00:03.3]} 70. Kb4 {[%clk 0:00:09.6]}
70... Qxg4 {[%clk 0:00:04]} 71. d5 {[%clk 0:00:10.3]} 71... Kd7 {[%clk
0:00:03.4]} 72. dxe6+ {[%clk 0:00:03.6]} 72... Qxe6 {[%clk 0:00:04.3]} 73. Qg7+
{[%clk 0:00:04.1]} 73... Kd6 {[%clk 0:00:03.5]} 74. Qd4+ {[%clk 0:00:03.7]}
74... Ke7 {[%clk 0:00:03.6]} 75. Qg7+ {[%clk 0:00:03.9]} 75... Kd6 {[%clk
0:00:04.1]} 76. Qd4+ {[%clk 0:00:04.1]} 76... Kc7 {[%clk 0:00:04.4]} 77. Qg7+
{[%clk 0:00:03.7]} 77... Kc6 {[%clk 0:00:04.8]} 78. Qc3+ {[%clk 0:00:03.7]}
78... Kd7 {[%clk 0:00:03.6]} 79. Qg7+ {[%clk 0:00:01.3]} 79... Qe7+ {[%clk
0:00:03.9]} 80. Qxe7+ {[%clk 0:00:02]} 80... Kxe7 {[%clk 0:00:04.8]} 81. Kc4
{[%clk 0:00:02.9]} 81... Kf6 {[%clk 0:00:05.6]} 82. Kd3 {[%clk 0:00:03.8]} 82...
Kf5 {[%clk 0:00:06.5]} 83. Ke2 {[%clk 0:00:04.7]} 83... Kxf4 {[%clk 0:00:06.9]}
84. Kf2 {[%clk 0:00:05.6]} 84... h5 {[%clk 0:00:07.7]} 85. Kg1 {[%clk
0:00:06.5]} 85... h4 {[%clk 0:00:08.6]} 86. Kh1 {[%clk 0:00:07.4]} 86... Kg3
{[%clk 0:00:09.5]} 87. Kg1 {[%clk 0:00:08.3]} 87... h3 {[%clk 0:00:10.4]} 88.
Kh1 {[%clk 0:00:09.2]} 88... h2 {[%clk 0:00:11.3]} 1/2-1/2

[Event "Late-Titled-Tuesday-Blitz-August-29-2023"]
[Site "Chess.com"]
[Date "2023.08.29"]
[Round "4"]
[White "Training_Day"]
[Black "ameetghasi100"]
[Result "1-0"]
[WhiteElo "2477"]
[BlackElo "2648"]
[TimeControl "180+1"]
[EndTime "14:40:29 PDT"]
[Termination "Training_Day won by checkmate"]

1. e4 {[%clk 0:02:53.2]} 1... g6 {[%clk 0:03:00.9]} 2. d4 {[%clk 0:02:49]} 2...
Bg7 {[%clk 0:03:01.8]} 3. c3 {[%clk 0:02:49.4]} 3... d6 {[%clk 0:03:01.8]} 4.
Nf3 {[%clk 0:02:48.8]} 4... Nf6 {[%clk 0:03:01]} 5. Bd3 {[%clk 0:02:48.3]} 5...
O-O {[%clk 0:03:00.9]} 6. O-O {[%clk 0:02:47.9]} 6... Nc6 {[%clk 0:03:01.2]} 7.
h3 {[%clk 0:02:47.5]} 7... e5 {[%clk 0:03:00.4]} 8. Re1 {[%clk 0:02:47.9]} 8...
Nd7 {[%clk 0:02:58.4]} 9. Be3 {[%clk 0:02:38.3]} 9... a6 {[%clk 0:02:56.1]} 10.
Nbd2 {[%clk 0:02:35.2]} 10... b6 {[%clk 0:02:56.5]} 11. Nf1 {[%clk 0:02:33.4]}
11... Bb7 {[%clk 0:02:56.3]} 12. Ng3 {[%clk 0:02:33.8]} 12... Ne7 {[%clk
0:02:50.2]} 13. Qd2 {[%clk 0:02:26.2]} 13... Re8 {[%clk 0:02:46.4]} 14. Bh6
{[%clk 0:02:25.6]} 14... Bh8 {[%clk 0:02:44.3]} 15. Rad1 {[%clk 0:02:25.1]}
15... Nc6 {[%clk 0:02:42.6]} 16. Bc2 {[%clk 0:02:22.1]} 16... Qe7 {[%clk
0:02:41.4]} 17. a3 {[%clk 0:02:18.8]} 17... Na5 {[%clk 0:02:38.7]} 18. Qd3
{[%clk 0:01:58.8]} 18... b5 {[%clk 0:02:37.3]} 19. b3 {[%clk 0:01:56.4]} 19...
Rad8 {[%clk 0:02:34.1]} 20. Qd2 {[%clk 0:01:51.8]} 20... c5 {[%clk 0:02:22.4]}
21. d5 {[%clk 0:01:40.6]} 21... Rc8 {[%clk 0:02:05.2]} 22. c4 {[%clk 0:01:37.3]}
22... Qd8 {[%clk 0:02:05.1]} 23. Qd3 {[%clk 0:01:19.6]} 23... Rb8 {[%clk
0:02:02]} 24. Nd2 {[%clk 0:01:17.4]} 24... Bc8 {[%clk 0:01:59.9]} 25. Rb1 {[%clk
0:01:13.8]} 25... b4 {[%clk 0:01:35.9]} 26. a4 {[%clk 0:01:11.4]} 26... Bg7
{[%clk 0:01:18.5]} 27. Qe3 {[%clk 0:01:06.9]} 27... Qh4 {[%clk 0:01:14.3]} 28.
Bg5 {[%clk 0:01:03.5]} 28... Qxg5 {[%clk 0:01:01.1]} 29. Qxg5 {[%clk 0:01:04.4]}
29... Bf6 {[%clk 0:01:01.1]} 30. Qe3 {[%clk 0:01:04]} 30... Bg7 {[%clk 0:01:02]}
31. Ndf1 {[%clk 0:01:02.4]} 31... Nf8 {[%clk 0:01:01.4]} 32. Nh2 {[%clk
0:01:00.8]} 32... h5 {[%clk 0:01:00.3]} 33. Nf3 {[%clk 0:00:49.6]} 33... Nh7
{[%clk 0:00:59.5]} 34. h4 {[%clk 0:00:48.5]} 34... Nf6 {[%clk 0:00:57.9]} 35.
Ng5 {[%clk 0:00:44.8]} 35... Bh6 {[%clk 0:00:56.3]} 36. f3 {[%clk 0:00:38.1]}
36... Nh7 {[%clk 0:00:56.2]} 37. Qf2 {[%clk 0:00:30.7]} 37... Nxg5 {[%clk
0:00:55.6]} 38. hxg5 {[%clk 0:00:31.6]} 38... Bxg5 {[%clk 0:00:55.5]} 39. Ne2
{[%clk 0:00:26]} 39... Bd7 {[%clk 0:00:46.7]} 40. Rbd1 {[%clk 0:00:23.4]} 40...
Nb7 {[%clk 0:00:41.6]} 41. g3 {[%clk 0:00:23.6]} 41... Bh6 {[%clk 0:00:40.2]}
42. f4 {[%clk 0:00:23.7]} 42... Bg4 {[%clk 0:00:40.5]} 43. Kg2 {[%clk
0:00:21.6]} 43... Bg7 {[%clk 0:00:34.7]} 44. f5 {[%clk 0:00:18.8]} 44... Rf8
{[%clk 0:00:31.7]} 45. Rc1 {[%clk 0:00:17.4]} 45... Bh6 {[%clk 0:00:31.1]} 46.
Rb1 {[%clk 0:00:15.9]} 46... Bg5 {[%clk 0:00:31.2]} 47. Ng1 {[%clk 0:00:15.4]}
47... Rbe8 {[%clk 0:00:30]} 48. Nf3 {[%clk 0:00:14.2]} 48... Bd8 {[%clk
0:00:28.8]} 49. Nh2 {[%clk 0:00:13.9]} 49... Kg7 {[%clk 0:00:28.7]} 50. Nxg4
{[%clk 0:00:13.9]} 50... hxg4 {[%clk 0:00:29.6]} 51. Rh1 {[%clk 0:00:12.7]}
51... Rh8 {[%clk 0:00:28.6]} 52. Qe2 {[%clk 0:00:12.5]} 52... Bf6 {[%clk
0:00:21.3]} 53. Qxg4 {[%clk 0:00:11.7]} 53... g5 {[%clk 0:00:22.2]} 54. Rxh8
{[%clk 0:00:09.1]} 54... Rxh8 {[%clk 0:00:23.1]} 55. Rh1 {[%clk 0:00:08.7]}
55... Rxh1 {[%clk 0:00:23.4]} 56. Kxh1 {[%clk 0:00:09.6]} 56... a5 {[%clk
0:00:23]} 57. Qh5 {[%clk 0:00:09]} 57... Nd8 {[%clk 0:00:22.7]} 58. Bd1 {[%clk
0:00:08.2]} 58... Nb7 {[%clk 0:00:22.6]} 59. Qh3 {[%clk 0:00:05.5]} 59... Nd8
{[%clk 0:00:22.7]} 60. Bh5 {[%clk 0:00:05.5]} 60... Kg8 {[%clk 0:00:16.8]} 61.
Kg2 {[%clk 0:00:04.2]} 61... Kg7 {[%clk 0:00:16.4]} 62. Kf3 {[%clk 0:00:04.1]}
62... Kg8 {[%clk 0:00:15.6]} 63. Kg4 {[%clk 0:00:01.9]} 63... Kg7 {[%clk
0:00:16]} 64. Kf3 {[%clk 0:00:02.8]} 64... Kg8 {[%clk 0:00:14.9]} 65. Ke2 {[%clk
0:00:03.7]} 65... Kg7 {[%clk 0:00:14.6]} 66. Bg4 {[%clk 0:00:04.6]} 66... Nb7
{[%clk 0:00:10.2]} 67. Qh5 {[%clk 0:00:05.5]} 67... Nd8 {[%clk 0:00:10.8]} 68.
Kd3 {[%clk 0:00:05.6]} 68... Nb7 {[%clk 0:00:10.8]} 69. Qh3 {[%clk 0:00:06]}
69... Nd8 {[%clk 0:00:11.2]} 70. Bh5 {[%clk 0:00:06.6]} 70... Kg8 {[%clk
0:00:11.2]} 71. Bxf7+ {[%clk 0:00:06.3]} 71... Nxf7 {[%clk 0:00:12.1]} 72. Qh5
{[%clk 0:00:06.4]} 72... Kf8 {[%clk 0:00:11.7]} 73. Qg6 {[%clk 0:00:06.2]} 73...
Ke7 {[%clk 0:00:10.6]} 74. Qg8 {[%clk 0:00:05.7]} 74... Nd8 {[%clk 0:00:11.2]}
75. Ke3 {[%clk 0:00:04]} 75... Kd7 {[%clk 0:00:10.3]} 76. Kf3 {[%clk 0:00:04.3]}
76... Ke7 {[%clk 0:00:10.1]} 77. Kg4 {[%clk 0:00:04.6]} 77... Nf7 {[%clk
0:00:10]} 78. Qa8 {[%clk 0:00:03.4]} 78... Bg7 {[%clk 0:00:06.8]} 79. Kh5 {[%clk
0:00:03.1]} 79... Bf6 {[%clk 0:00:02.1]} 80. Qxa5 {[%clk 0:00:03.5]} 80... Kf8
{[%clk 0:00:01.9]} 81. Kg6 {[%clk 0:00:03.1]} 81... Bd8 {[%clk 0:00:01.7]} 82.
Qa8 {[%clk 0:00:01.6]} 82... Nh8+ {[%clk 0:00:02.6]} 83. Kh7 {[%clk 0:00:01.5]}
83... Nf7 {[%clk 0:00:03.5]} 84. Qb7 {[%clk 0:00:01.2]} 84... Be7 {[%clk
0:00:04.4]} 85. Qb8+ {[%clk 0:00:01.1]} 85... Bd8 {[%clk 0:00:04.6]} 86. Qc7
{[%clk 0:00:02]} 86... g4 {[%clk 0:00:04.8]} 87. Qd7 {[%clk 0:00:01.7]} 87...
Bc7 {[%clk 0:00:05.7]} 88. Kg6 {[%clk 0:00:02.1]} 88... Bd8 {[%clk 0:00:04]} 89.
Qxf7# {[%clk 0:00:01.9]} 1-0